[Event "Early-Titled-Tuesday-Blitz-September-05-2023"]
[Site "Chess.com"]
[Date "2023.09.05"]
[Round "3"]
[White "Bilan_Danila"]
[Black "KorolDimitriy75"]
[Result "1-0"]
[WhiteElo "2542"]
[BlackElo "2325"]
[TimeControl "180+1"]
[EndTime "8:27:14 PDT"]
[Termination "Bilan_Danila won on time"]

1. d4 {[%clk 0:03:00.9]} 1... Nf6 {[%clk 0:02:56.1]} 2. Nf3 {[%clk 0:03:01.6]}
2... g6 {[%clk 0:02:55.9]} 3. Bg5 {[%clk 0:03:00.9]} 3... Bg7 {[%clk 0:02:55.2]}
4. c3 {[%clk 0:03:01.1]} 4... c5 {[%clk 0:02:54.1]} 5. e3 {[%clk 0:03:01]} 5...
Qb6 {[%clk 0:02:53.5]} 6. Qb3 {[%clk 0:02:56.3]} 6... d5 {[%clk 0:02:51.2]} 7.
Nbd2 {[%clk 0:02:38]} 7... O-O {[%clk 0:02:47.9]} 8. Be2 {[%clk 0:02:32.2]} 8...
Nc6 {[%clk 0:02:46.6]} 9. O-O {[%clk 0:02:29.2]} 9... Rd8 {[%clk 0:02:32.5]} 10.
Rfd1 {[%clk 0:02:22.9]} 10... Be6 {[%clk 0:02:03.1]} 11. Bf4 {[%clk 0:02:12.8]}
11... Rac8 {[%clk 0:01:51.1]} 12. h3 {[%clk 0:02:10.3]} 12... h6 {[%clk
0:01:45.9]} 13. Ne5 {[%clk 0:01:59.6]} 13... Nxe5 {[%clk 0:01:38.8]} 14. Bxe5
{[%clk 0:02:00.5]} 14... Nd7 {[%clk 0:01:34.5]} 15. Bxg7 {[%clk 0:01:57.5]}
15... Kxg7 {[%clk 0:01:35.4]} 16. Rac1 {[%clk 0:01:56.5]} 16... c4 {[%clk
0:00:52.3]} 17. Qa3 {[%clk 0:01:52.4]} 17... Nf6 {[%clk 0:00:31.9]} 18. b3
{[%clk 0:01:48.9]} 18... cxb3 {[%clk 0:00:20.7]} 19. axb3 {[%clk 0:01:49.8]}
19... Rd7 {[%clk 0:00:11.6]} 20. c4 {[%clk 0:01:45.9]} 20... a6 {[%clk
0:00:09.3]} 21. c5 {[%clk 0:01:35.3]} 21... Qc7 {[%clk 0:00:08.8]} 22. b4 {[%clk
0:01:33.3]} 22... Bf5 {[%clk 0:00:06.5]} 23. Bd3 {[%clk 0:01:05.9]} 23... Bxd3
{[%clk 0:00:05.7]} 24. Qxd3 {[%clk 0:01:06.8]} 24... e5 {[%clk 0:00:05.8]} 25.
b5 {[%clk 0:01:02.7]} 25... axb5 {[%clk 0:00:04.8]} 26. Qxb5 {[%clk 0:01:03.6]}
26... exd4 {[%clk 0:00:03.9]} 27. exd4 {[%clk 0:01:04.5]} 27... Qf4 {[%clk
0:00:03.8]} 28. Nf3 {[%clk 0:01:00.7]} 28... Re7 {[%clk 0:00:04.2]} 29. Re1
{[%clk 0:00:52]} 29... Ne4 {[%clk 0:00:03.5]} 30. Qb3 {[%clk 0:00:43.6]} 30...
Rc6 {[%clk 0:00:03.2]} 31. Qxd5 {[%clk 0:00:39.8]} 31... Rf6 {[%clk 0:00:01.1]}
32. Qa2 {[%clk 0:00:26.7]} 1-0

[Event "Early-Titled-Tuesday-Blitz-September-05-2023"]
[Site "Chess.com"]
[Date "2023.09.05"]
[Round "3"]
[White "EvgenyBurmakin"]
[Black "SaiHanThiha"]
[Result "0-1"]
[WhiteElo "2288"]
[BlackElo "2467"]
[TimeControl "180+1"]
[EndTime "8:27:17 PDT"]
[Termination "SaiHanThiha won by resignation"]

1. e4 {[%clk 0:02:59.9]} 1... c6 {[%clk 0:03:00.2]} 2. Nc3 {[%clk 0:02:58.6]}
2... d5 {[%clk 0:03:01.1]} 3. Nf3 {[%clk 0:02:58.7]} 3... Bg4 {[%clk 0:03:01.6]}
4. d4 {[%clk 0:02:57.9]} 4... Nf6 {[%clk 0:02:50.2]} 5. Bd3 {[%clk 0:02:49.7]}
5... dxe4 {[%clk 0:02:28.6]} 6. Nxe4 {[%clk 0:02:50.6]} 6... Bxf3 {[%clk
0:02:23.1]} 7. Qxf3 {[%clk 0:02:47.3]} 7... Qxd4 {[%clk 0:02:21.2]} 8. O-O
{[%clk 0:02:31.2]} 8... Nbd7 {[%clk 0:02:20.3]} 9. Be3 {[%clk 0:02:30.3]} 9...
Qd5 {[%clk 0:02:06.3]} 10. Nxf6+ {[%clk 0:02:05.4]} 10... Nxf6 {[%clk
0:02:04.4]} 11. Qg3 {[%clk 0:01:58.6]} 11... e6 {[%clk 0:01:39.8]} 12. Rad1
{[%clk 0:01:19]} 12... Qa5 {[%clk 0:01:39.8]} 13. Bd4 {[%clk 0:01:09.4]} 13...
Rd8 {[%clk 0:01:32.1]} 14. Bc3 {[%clk 0:01:02.2]} 14... Qb6 {[%clk 0:01:26.2]}
15. Rfe1 {[%clk 0:00:54.3]} 15... Nd5 {[%clk 0:01:23.7]} 16. Be5 {[%clk
0:00:18.8]} 16... f6 {[%clk 0:01:04.5]} 17. Bxf6 {[%clk 0:00:09.2]} 17... gxf6
{[%clk 0:00:50.2]} 18. Rxe6+ {[%clk 0:00:09.5]} 18... Kf7 {[%clk 0:00:50.7]} 19.
Qg4 {[%clk 0:00:07.9]} 19... Rg8 {[%clk 0:00:43.1]} 20. Qf5 {[%clk 0:00:05.6]}
20... Rg6 {[%clk 0:00:36]} 21. Rde1 {[%clk 0:00:03.7]} 21... Qd4 {[%clk
0:00:28.8]} 22. Qh5 {[%clk 0:00:04]} 22... Qg4 {[%clk 0:00:19.9]} 23. Bxg6+
{[%clk 0:00:04.6]} 23... Qxg6 {[%clk 0:00:18.1]} 24. Qf3 {[%clk 0:00:05.3]}
24... Bb4 {[%clk 0:00:16.7]} 25. c4 {[%clk 0:00:05.7]} 25... Bxe1 {[%clk
0:00:16.4]} 26. cxd5 {[%clk 0:00:05.8]} 26... Ba5 {[%clk 0:00:15.4]} 27. Re3
{[%clk 0:00:05.1]} 27... Qb1+ {[%clk 0:00:15.2]} 0-1

[Event "Early-Titled-Tuesday-Blitz-September-05-2023"]
[Site "Chess.com"]
[Date "2023.09.05"]
[Round "3"]
[White "Al_Shima"]
[Black "GeorgiosSouleidis"]
[Result "1/2-1/2"]
[WhiteElo "2338"]
[BlackElo "2536"]
[TimeControl "180+1"]
[EndTime "8:27:17 PDT"]
[Termination "Game drawn - insufficient material"]

1. d4 {[%clk 0:02:58.5]} 1... Nf6 {[%clk 0:02:59.9]} 2. c4 {[%clk 0:02:56.7]}
2... g6 {[%clk 0:03:00.4]} 3. Nc3 {[%clk 0:02:56.1]} 3... Bg7 {[%clk 0:03:01]}
4. e4 {[%clk 0:02:56.6]} 4... d6 {[%clk 0:03:01.7]} 5. Be2 {[%clk 0:02:56.5]}
5... O-O {[%clk 0:03:02.2]} 6. Nf3 {[%clk 0:02:53.1]} 6... e5 {[%clk 0:03:02.1]}
7. O-O {[%clk 0:02:52.8]} 7... Bg4 {[%clk 0:03:00.4]} 8. dxe5 {[%clk 0:02:51.3]}
8... Bxf3 {[%clk 0:02:59.6]} 9. Bxf3 {[%clk 0:02:48.3]} 9... dxe5 {[%clk
0:02:58.9]} 10. Bg5 {[%clk 0:02:43.8]} 10... c6 {[%clk 0:02:45.6]} 11. Qc1
{[%clk 0:02:36.6]} 11... a5 {[%clk 0:02:37.3]} 12. Rd1 {[%clk 0:02:35.9]} 12...
Qc7 {[%clk 0:02:34.7]} 13. Bh6 {[%clk 0:02:31.6]} 13... Nbd7 {[%clk 0:02:33.2]}
14. Bxg7 {[%clk 0:02:31.1]} 14... Kxg7 {[%clk 0:02:34.1]} 15. Qe3 {[%clk
0:02:25.4]} 15... Rfd8 {[%clk 0:02:30.6]} 16. Rd2 {[%clk 0:02:24.3]} 16... Nf8
{[%clk 0:02:30.5]} 17. Rad1 {[%clk 0:02:24.5]} 17... Rxd2 {[%clk 0:02:24]} 18.
Qxd2 {[%clk 0:02:22.5]} 18... Ne6 {[%clk 0:02:24.4]} 19. Qd6 {[%clk 0:02:11.1]}
19... Rc8 {[%clk 0:01:57.8]} 20. h3 {[%clk 0:02:09.2]} 20... Nd4 {[%clk
0:01:53.1]} 21. Qxc7 {[%clk 0:02:08.1]} 21... Rxc7 {[%clk 0:01:46.3]} 22. Kf1
{[%clk 0:02:07.9]} 22... Kf8 {[%clk 0:01:44]} 23. Ne2 {[%clk 0:02:05.6]} 23...
Nxf3 {[%clk 0:01:32]} 24. gxf3 {[%clk 0:02:05.3]} 24... Ke7 {[%clk 0:01:32.7]}
25. Ke1 {[%clk 0:02:01.5]} 25... Rd7 {[%clk 0:01:13.3]} 26. Rxd7+ {[%clk
0:01:57.6]} 26... Kxd7 {[%clk 0:01:13.8]} 27. Kd2 {[%clk 0:01:57.8]} 27... Ke6
{[%clk 0:01:13.7]} 28. Ke3 {[%clk 0:01:57.1]} 28... Nh5 {[%clk 0:01:05.6]} 29.
f4 {[%clk 0:01:50.4]} 29... f6 {[%clk 0:01:04.3]} 30. fxe5 {[%clk 0:01:42.3]}
30... fxe5 {[%clk 0:01:05.2]} 31. h4 {[%clk 0:01:29.8]} 31... h6 {[%clk
0:01:03.9]} 32. b3 {[%clk 0:01:21.1]} 32... b6 {[%clk 0:00:59]} 33. a3 {[%clk
0:01:17.1]} 33... Kd6 {[%clk 0:00:37.9]} 34. b4 {[%clk 0:01:16.6]} 34... axb4
{[%clk 0:00:38.1]} 35. axb4 {[%clk 0:01:17.5]} 35... Ke6 {[%clk 0:00:38.7]} 36.
c5 {[%clk 0:01:07.5]} 36... bxc5 {[%clk 0:00:34.5]} 37. bxc5 {[%clk 0:01:08.4]}
37... Nf6 {[%clk 0:00:32.8]} 38. f4 {[%clk 0:01:03.8]} 38... Nd7 {[%clk
0:00:33.1]} 39. fxe5 {[%clk 0:00:53.9]} 39... Kxe5 {[%clk 0:00:29.9]} 40. Nd4
{[%clk 0:00:51.8]} 40... Nxc5 {[%clk 0:00:25.3]} 41. Nxc6+ {[%clk 0:00:51.9]}
41... Kf6 {[%clk 0:00:25.7]} 42. Kf4 {[%clk 0:00:49.3]} 42... Ne6+ {[%clk
0:00:25.3]} 43. Kg4 {[%clk 0:00:49]} 43... h5+ {[%clk 0:00:24.4]} 44. Kf3 {[%clk
0:00:49.3]} 44... g5 {[%clk 0:00:24.1]} 45. hxg5+ {[%clk 0:00:48.7]} 45... Kxg5
{[%clk 0:00:24.5]} 46. Kg3 {[%clk 0:00:45]} 46... h4+ {[%clk 0:00:23.9]} 47. Kh2
{[%clk 0:00:44.6]} 47... Kf4 {[%clk 0:00:19.2]} 48. Ne7 {[%clk 0:00:44.7]} 48...
Kxe4 {[%clk 0:00:18.5]} 49. Ng6 {[%clk 0:00:45.1]} 49... h3 {[%clk 0:00:17.7]}
50. Kg3 {[%clk 0:00:43.9]} 50... h2 {[%clk 0:00:17.7]} 51. Kxh2 {[%clk
0:00:43.9]} 1/2-1/2

[Event "Early-Titled-Tuesday-Blitz-September-05-2023"]
[Site "Chess.com"]
[Date "2023.09.05"]
[Round "3"]
[White "CarrotsandPizza"]
[Black "DishonorOnYourCow"]
[Result "0-1"]
[WhiteElo "2241"]
[BlackElo "2552"]
[TimeControl "180+1"]
[EndTime "8:27:18 PDT"]
[Termination "DishonorOnYourCow won by resignation"]

1. e4 {[%clk 0:02:59.8]} 1... c5 {[%clk 0:02:59.2]} 2. d4 {[%clk 0:02:59.3]}
2... cxd4 {[%clk 0:02:59.3]} 3. Nf3 {[%clk 0:03:00.2]} 3... d6 {[%clk
0:02:51.9]} 4. Nxd4 {[%clk 0:02:59.8]} 4... Nf6 {[%clk 0:02:52.4]} 5. Nc3 {[%clk
0:03:00]} 5... a6 {[%clk 0:02:52.7]} 6. Bc4 {[%clk 0:02:59.9]} 6... e6 {[%clk
0:02:52.7]} 7. Bb3 {[%clk 0:03:00.1]} 7... Be7 {[%clk 0:02:51.4]} 8. g4 {[%clk
0:02:59.6]} 8... h6 {[%clk 0:02:47.2]} 9. Rg1 {[%clk 0:02:57.1]} 9... b5 {[%clk
0:02:45.3]} 10. a3 {[%clk 0:02:56.1]} 10... Qc7 {[%clk 0:02:42.6]} 11. h4 {[%clk
0:02:53.4]} 11... Bb7 {[%clk 0:02:38.2]} 12. Qe2 {[%clk 0:02:51.2]} 12... Nc6
{[%clk 0:02:37.7]} 13. Be3 {[%clk 0:02:45.8]} 13... Nd7 {[%clk 0:02:14]} 14.
Bxe6 {[%clk 0:02:42.9]} 14... fxe6 {[%clk 0:02:05.4]} 15. Nxe6 {[%clk
0:02:42.7]} 15... Qa5 {[%clk 0:02:05.7]} 16. Nxg7+ {[%clk 0:02:26.2]} 16... Kf7
{[%clk 0:02:03.5]} 17. Nf5 {[%clk 0:02:25.8]} 17... b4 {[%clk 0:02:01.9]} 18.
Nd5 {[%clk 0:02:21.5]} 18... bxa3+ {[%clk 0:01:58.7]} 19. c3 {[%clk 0:02:10.2]}
19... axb2 {[%clk 0:01:41.9]} 20. Qxb2 {[%clk 0:02:09.4]} 20... Qb5 {[%clk
0:01:37]} 21. Qc2 {[%clk 0:02:03.6]} 21... Nce5 {[%clk 0:01:08.1]} 22. Ndxe7
{[%clk 0:01:33.7]} 22... Nf3+ {[%clk 0:01:01.7]} 23. Kd1 {[%clk 0:01:33.5]}
23... Nxg1 {[%clk 0:00:56]} 24. Nxd6+ {[%clk 0:01:32.8]} 24... Kxe7 {[%clk
0:00:53.4]} 25. Nxb5 {[%clk 0:01:30.1]} 25... axb5 {[%clk 0:00:53.7]} 26. Rxa8
{[%clk 0:00:59.4]} 26... Rxa8 {[%clk 0:00:54.6]} 27. Qb1 {[%clk 0:00:59.1]}
27... Bc6 {[%clk 0:00:38.2]} 28. Bxh6 {[%clk 0:00:56.5]} 28... Ne5 {[%clk
0:00:36.2]} 29. Bg5+ {[%clk 0:00:36.3]} 29... Kd7 {[%clk 0:00:33.2]} 30. Kc2
{[%clk 0:00:30.9]} 30... Bxe4+ {[%clk 0:00:32.7]} 31. Kb2 {[%clk 0:00:29.2]}
31... Bxb1 {[%clk 0:00:33.6]} 32. Kxb1 {[%clk 0:00:26.2]} 32... Ngf3 {[%clk
0:00:34.2]} 33. Bf4 {[%clk 0:00:26]} 33... Nd3 {[%clk 0:00:33]} 34. Be3 {[%clk
0:00:24.6]} 34... Nxh4 {[%clk 0:00:32.5]} 35. Kc2 {[%clk 0:00:21.1]} 35... Ne5
{[%clk 0:00:32.2]} 36. g5 {[%clk 0:00:20.6]} 36... Nhf3 {[%clk 0:00:32]} 37. Bf4
{[%clk 0:00:18.5]} 37... Rg8 {[%clk 0:00:32.4]} 38. Bxe5 {[%clk 0:00:16.8]}
38... Nxe5 {[%clk 0:00:32.3]} 39. f4 {[%clk 0:00:16.9]} 39... Ng6 {[%clk
0:00:31.9]} 40. f5 {[%clk 0:00:17.2]} 40... Nh4 {[%clk 0:00:32.5]} 41. f6 {[%clk
0:00:17.2]} 41... Rxg5 {[%clk 0:00:32.4]} 0-1

[Event "Early-Titled-Tuesday-Blitz-September-05-2023"]
[Site "Chess.com"]
[Date "2023.09.05"]
[Round "3"]
[White "GianmarcoVaR"]
[Black "Duhless"]
[Result "0-1"]
[WhiteElo "2646"]
[BlackElo "3013"]
[TimeControl "180+1"]
[EndTime "8:27:19 PDT"]
[Termination "Duhless won on time"]

1. Nf3 {[%clk 0:02:45.1]} 1... Nf6 {[%clk 0:02:53.8]} 2. c4 {[%clk 0:02:42.5]}
2... c5 {[%clk 0:02:53.1]} 3. Nc3 {[%clk 0:02:40.5]} 3... e6 {[%clk 0:02:52.9]}
4. g3 {[%clk 0:02:37.8]} 4... b6 {[%clk 0:02:51.7]} 5. Bg2 {[%clk 0:02:36.1]}
5... Bb7 {[%clk 0:02:52.2]} 6. O-O {[%clk 0:02:36.5]} 6... Be7 {[%clk
0:02:51.3]} 7. d4 {[%clk 0:02:32]} 7... cxd4 {[%clk 0:02:51.3]} 8. Qxd4 {[%clk
0:02:32.7]} 8... d6 {[%clk 0:02:52.1]} 9. Bg5 {[%clk 0:02:30.7]} 9... Nbd7
{[%clk 0:02:48.6]} 10. Nb5 {[%clk 0:02:20.2]} 10... d5 {[%clk 0:02:42.9]} 11.
cxd5 {[%clk 0:02:00.5]} 11... Bxd5 {[%clk 0:02:41.7]} 12. Nc3 {[%clk 0:01:41.9]}
12... Bb7 {[%clk 0:02:40.7]} 13. Rfd1 {[%clk 0:01:38.7]} 13... O-O {[%clk
0:02:38.3]} 14. Bxf6 {[%clk 0:01:33.1]} 14... Nxf6 {[%clk 0:02:37.1]} 15. Qa4
{[%clk 0:01:32.4]} 15... Qb8 {[%clk 0:02:28.7]} 16. Nd4 {[%clk 0:01:30.3]} 16...
Bxg2 {[%clk 0:02:26.7]} 17. Kxg2 {[%clk 0:01:29.9]} 17... Rc8 {[%clk 0:02:27.4]}
18. Qa6 {[%clk 0:01:17.3]} 18... Bb4 {[%clk 0:02:23]} 19. Ndb5 {[%clk
0:01:15.8]} 19... Qe5 {[%clk 0:02:09.5]} 20. Rd3 {[%clk 0:01:06.2]} 20... h5
{[%clk 0:01:53.1]} 21. Rad1 {[%clk 0:01:01.1]} 21... h4 {[%clk 0:01:50.2]} 22.
Qb7 {[%clk 0:00:53.6]} 22... a6 {[%clk 0:01:24.2]} 23. Nd6 {[%clk 0:00:52.9]}
23... Bxd6 {[%clk 0:01:05.4]} 24. Rxd6 {[%clk 0:00:53.2]} 24... Rab8 {[%clk
0:01:06.2]} 25. Qf3 {[%clk 0:00:40.3]} 25... b5 {[%clk 0:00:57.8]} 26. R6d4
{[%clk 0:00:13.5]} 26... b4 {[%clk 0:00:49.3]} 27. Na4 {[%clk 0:00:08]} 27...
Rc2 {[%clk 0:00:39.2]} 28. Rd8+ {[%clk 0:00:03.3]} 28... Rxd8 {[%clk 0:00:39.3]}
29. Rxd8+ {[%clk 0:00:03.8]} 29... Kh7 {[%clk 0:00:40.1]} 30. Qd3+ {[%clk
0:00:03]} 30... Qe4+ {[%clk 0:00:40.8]} 31. Qxe4+ {[%clk 0:00:02.2]} 31... Nxe4
{[%clk 0:00:41.7]} 32. Kf3 {[%clk 0:00:01.6]} 32... Nd2+ {[%clk 0:00:38.6]} 33.
Ke3 {[%clk 0:00:01.8]} 33... Nf1+ {[%clk 0:00:39.3]} 34. Kf4 {[%clk 0:00:01.3]}
34... Rxe2 {[%clk 0:00:37.3]} 35. Kf3 {[%clk 0:00:01.4]} 35... Rc2 {[%clk
0:00:33.7]} 36. gxh4 {[%clk 0:00:01.8]} 36... Nxh2+ {[%clk 0:00:32.5]} 37. Kg3
{[%clk 0:00:01.7]} 37... Nf1+ {[%clk 0:00:32.9]} 38. Kf3 {[%clk 0:00:01.6]}
38... Nd2+ {[%clk 0:00:31.9]} 0-1

[Event "Early-Titled-Tuesday-Blitz-September-05-2023"]
[Site "Chess.com"]
[Date "2023.09.05"]
[Round "3"]
[White "valemava"]
[Black "jup1978"]
[Result "0-1"]
[WhiteElo "2289"]
[BlackElo "2515"]
[TimeControl "180+1"]
[EndTime "8:27:19 PDT"]
[Termination "jup1978 won on time"]

1. e4 {[%clk 0:03:00.9]} 1... c5 {[%clk 0:02:58.4]} 2. a3 {[%clk 0:03:00.6]}
2... g6 {[%clk 0:02:56.5]} 3. b4 {[%clk 0:03:00.5]} 3... Bg7 {[%clk 0:02:56.4]}
4. c3 {[%clk 0:03:00.5]} 4... d5 {[%clk 0:02:52]} 5. d3 {[%clk 0:02:58.8]} 5...
dxe4 {[%clk 0:02:50.5]} 6. dxe4 {[%clk 0:02:58.7]} 6... Qxd1+ {[%clk 0:02:50.7]}
7. Kxd1 {[%clk 0:02:59.6]} 7... Nf6 {[%clk 0:02:49.4]} 8. f3 {[%clk 0:02:59.8]}
8... Nfd7 {[%clk 0:02:48.7]} 9. Be3 {[%clk 0:02:58.9]} 9... O-O {[%clk
0:02:46.3]} 10. Kc2 {[%clk 0:02:53.8]} 10... b6 {[%clk 0:02:42.8]} 11. Nd2
{[%clk 0:02:51.1]} 11... Ba6 {[%clk 0:02:41.5]} 12. Bxa6 {[%clk 0:02:45.7]}
12... Nxa6 {[%clk 0:02:42.4]} 13. Ne2 {[%clk 0:02:44.3]} 13... Rac8 {[%clk
0:02:41.3]} 14. Kb3 {[%clk 0:02:41.1]} 14... Ne5 {[%clk 0:02:34.7]} 15. b5
{[%clk 0:02:31.7]} 15... Nc7 {[%clk 0:02:33.3]} 16. Nc4 {[%clk 0:02:15.5]} 16...
Nxb5 {[%clk 0:02:25.2]} 17. Nxe5 {[%clk 0:02:04.1]} 17... Bxe5 {[%clk
0:02:26.1]} 18. a4 {[%clk 0:02:02.6]} 18... Nd6 {[%clk 0:02:19.1]} 19. f4 {[%clk
0:01:59.9]} 19... Bg7 {[%clk 0:02:14.9]} 20. e5 {[%clk 0:01:58.9]} 20... Nf5
{[%clk 0:02:12.6]} 21. Bf2 {[%clk 0:01:58.5]} 21... e6 {[%clk 0:02:12.1]} 22. g4
{[%clk 0:01:57.6]} 22... Ne7 {[%clk 0:02:12.2]} 23. c4 {[%clk 0:01:57.3]} 23...
g5 {[%clk 0:02:11.8]} 24. Bg3 {[%clk 0:01:49.7]} 24... gxf4 {[%clk 0:02:09.4]}
25. Nxf4 {[%clk 0:01:47.7]} 25... Nc6 {[%clk 0:02:10.3]} 26. Rae1 {[%clk
0:01:29.7]} 26... Rcd8 {[%clk 0:02:06.1]} 27. Re3 {[%clk 0:01:25.6]} 27... Rd4
{[%clk 0:01:57.5]} 28. Nh5 {[%clk 0:01:22.3]} 28... Rfd8 {[%clk 0:01:46.7]} 29.
Nxg7 {[%clk 0:00:45.6]} 29... Kxg7 {[%clk 0:01:47.6]} 30. Bh4 {[%clk 0:00:44.7]}
30... Na5+ {[%clk 0:01:44.9]} 31. Kc2 {[%clk 0:00:37.9]} 31... Rxc4+ {[%clk
0:01:39.5]} 32. Kb1 {[%clk 0:00:34.5]} 32... Rd7 {[%clk 0:01:29.2]} 33. Bf6+
{[%clk 0:00:33.5]} 33... Kg6 {[%clk 0:01:28.5]} 34. h4 {[%clk 0:00:32.4]} 34...
h6 {[%clk 0:01:28.6]} 35. h5+ {[%clk 0:00:17.6]} 35... Kh7 {[%clk 0:01:26.1]}
36. g5 {[%clk 0:00:18]} 36... hxg5 {[%clk 0:01:23.5]} 37. Rg3 {[%clk 0:00:17.8]}
37... g4 {[%clk 0:01:21.1]} 38. Rh4 {[%clk 0:00:14.9]} 38... Rdd4 {[%clk
0:01:19.4]} 39. Rh2 {[%clk 0:00:11.9]} 39... Rf4 {[%clk 0:01:09.6]} 40. h6
{[%clk 0:00:10.1]} 40... Nc6 {[%clk 0:01:01.8]} 41. Kb2 {[%clk 0:00:08.1]} 41...
Nb4 {[%clk 0:00:56.7]} 42. a5 {[%clk 0:00:05.1]} 42... Nd5 {[%clk 0:00:55.7]}
43. axb6 {[%clk 0:00:04.4]} 43... axb6 {[%clk 0:00:56.6]} 44. Bd8 {[%clk
0:00:04.1]} 44... b5 {[%clk 0:00:50.8]} 45. Rg1 {[%clk 0:00:01.4]} 45... Rb4+
{[%clk 0:00:44.4]} 0-1

[Event "Early-Titled-Tuesday-Blitz-September-05-2023"]
[Site "Chess.com"]
[Date "2023.09.05"]
[Round "3"]
[White "Massakru"]
[Black "HeinichessPY"]
[Result "1-0"]
[WhiteElo "2430"]
[BlackElo "2198"]
[TimeControl "180+1"]
[EndTime "8:27:20 PDT"]
[Termination "Massakru won by resignation"]

1. e4 {[%clk 0:03:00.9]} 1... c5 {[%clk 0:02:56.8]} 2. Nf3 {[%clk 0:03:00.6]}
2... Nc6 {[%clk 0:02:57]} 3. c3 {[%clk 0:03:01.2]} 3... Nf6 {[%clk 0:02:56.4]}
4. e5 {[%clk 0:03:01.4]} 4... Nd5 {[%clk 0:02:56.1]} 5. Bc4 {[%clk 0:03:02]}
5... Nb6 {[%clk 0:02:55.3]} 6. Bb3 {[%clk 0:03:02.4]} 6... g6 {[%clk 0:02:55.6]}
7. d4 {[%clk 0:03:01.9]} 7... cxd4 {[%clk 0:02:55.3]} 8. cxd4 {[%clk 0:03:02.8]}
8... d5 {[%clk 0:02:55.4]} 9. h3 {[%clk 0:02:59.4]} 9... Bg7 {[%clk 0:02:55.7]}
10. O-O {[%clk 0:02:58.6]} 10... O-O {[%clk 0:02:55.9]} 11. Bg5 {[%clk
0:02:57.1]} 11... Bf5 {[%clk 0:02:46.2]} 12. Nc3 {[%clk 0:02:56.4]} 12... Na5
{[%clk 0:02:38.7]} 13. Bc2 {[%clk 0:02:50.6]} 13... Bxc2 {[%clk 0:02:37.5]} 14.
Qxc2 {[%clk 0:02:51.5]} 14... Rc8 {[%clk 0:02:37.9]} 15. Rac1 {[%clk 0:02:43.4]}
15... Qd7 {[%clk 0:02:36.4]} 16. b3 {[%clk 0:02:38.9]} 16... Rc7 {[%clk
0:02:32]} 17. Qd2 {[%clk 0:02:38.5]} 17... Rfc8 {[%clk 0:02:31.3]} 18. Ne2
{[%clk 0:02:29.3]} 18... Rxc1 {[%clk 0:02:28.8]} 19. Nxc1 {[%clk 0:02:27.7]}
19... Nc6 {[%clk 0:02:28.1]} 20. Nd3 {[%clk 0:02:25.1]} 20... Qf5 {[%clk
0:02:12.2]} 21. Qe3 {[%clk 0:02:15.1]} 21... Nd7 {[%clk 0:02:03.4]} 22. g4
{[%clk 0:02:13.4]} 22... Qe4 {[%clk 0:02:02.6]} 23. Rc1 {[%clk 0:02:00.6]} 23...
Qxe3 {[%clk 0:01:51.5]} 24. fxe3 {[%clk 0:01:59.9]} 24... h6 {[%clk 0:01:49.4]}
25. Bh4 {[%clk 0:01:57.4]} 25... g5 {[%clk 0:01:38.7]} 26. Bg3 {[%clk 0:01:55]}
26... e6 {[%clk 0:01:38.8]} 27. h4 {[%clk 0:01:44.3]} 27... Ne7 {[%clk 0:01:32]}
28. Rxc8+ {[%clk 0:01:42]} 28... Nxc8 {[%clk 0:01:32.9]} 29. hxg5 {[%clk
0:01:42.3]} 29... hxg5 {[%clk 0:01:33.2]} 30. Nxg5 {[%clk 0:01:42.9]} 30... Bh6
{[%clk 0:01:33.6]} 31. Bf4 {[%clk 0:01:38.3]} 31... Kg7 {[%clk 0:01:20.2]} 32.
Kf2 {[%clk 0:01:10.4]} 32... Ne7 {[%clk 0:01:19]} 33. Ke2 {[%clk 0:01:07.4]}
33... Ng6 {[%clk 0:01:18.3]} 34. Nh3 {[%clk 0:01:01.4]} 34... f6 {[%clk
0:01:12.3]} 35. exf6+ {[%clk 0:00:59.2]} 35... Nxf6 {[%clk 0:01:13.2]} 36. Bxh6+
{[%clk 0:00:54.3]} 36... Kxh6 {[%clk 0:01:11.5]} 37. g5+ {[%clk 0:00:54.5]}
37... Kg7 {[%clk 0:01:11.4]} 38. gxf6+ {[%clk 0:00:54.7]} 38... Kxf6 {[%clk
0:01:12.3]} 39. Nhf4 {[%clk 0:00:54.4]} 39... Nh4 {[%clk 0:01:10.4]} 40. Nc5
{[%clk 0:00:53.7]} 40... b6 {[%clk 0:01:08.3]} 41. Ncxe6 {[%clk 0:00:52.9]}
41... Kf5 {[%clk 0:01:09.2]} 42. Nc7 {[%clk 0:00:51.9]} 42... Ke4 {[%clk
0:01:08]} 43. Ncxd5 {[%clk 0:00:51.5]} 43... b5 {[%clk 0:01:07.2]} 44. Nc3+
{[%clk 0:00:50]} 44... Kf5 {[%clk 0:01:06.2]} 45. Nxb5 {[%clk 0:00:49.9]} 45...
a5 {[%clk 0:01:06.5]} 46. a3 {[%clk 0:00:48.1]} 46... Ke4 {[%clk 0:01:06.2]} 47.
Nc3+ {[%clk 0:00:46.3]} 47... Kf5 {[%clk 0:01:05]} 48. Nd3 {[%clk 0:00:46.4]}
48... Ng6 {[%clk 0:01:02.8]} 49. e4+ {[%clk 0:00:46.5]} 49... Ke6 {[%clk
0:01:02.5]} 50. d5+ {[%clk 0:00:45.5]} 50... Kd6 {[%clk 0:01:01.2]} 51. Nb5+
{[%clk 0:00:45]} 51... Kd7 {[%clk 0:01:00.6]} 52. e5 {[%clk 0:00:45.2]} 52...
Ke7 {[%clk 0:00:56.5]} 53. d6+ {[%clk 0:00:44.7]} 53... Kd7 {[%clk 0:00:56.8]}
54. Nc5+ {[%clk 0:00:43.3]} 54... Kc6 {[%clk 0:00:56.6]} 55. d7 {[%clk
0:00:43.4]} 55... a4 {[%clk 0:00:48.5]} 56. d8=Q {[%clk 0:00:41.6]} 56... axb3
{[%clk 0:00:48.8]} 57. Qd6+ {[%clk 0:00:36.6]} 57... Kxb5 {[%clk 0:00:48.8]} 58.
Nd3 {[%clk 0:00:34.6]} 1-0